fUSD/lending_fUSD_20240107
["ID","MTS","AMOUNT","RATE_DAILY","PERIOD"]
[310649225,1704634243792,-4438.18663986,0.00023,2]
[310649265,1704634246096,-17316.21394332,0.00023,2]
[310649269,1704634246159,-3486.53142826,0.00023,2]
[310649270,1704634246171,-785.57430074,0.00023,2]
[310649271,1704634248944,-7815.67675066,0.00023,2]
[310649272,1704634248955,-8647.30119504,0.00023,2]
[310649273,1704634248965,-2000.0,0.00023,3]
[310649274,1704634248975,-49008.7760949,0.00023,2]
[310649275,1704634249003,-3120.94606476,0.00023,2]
[310649276,1704634249015,-13898.39317815,0.00023,2]
[310649277,1704634249027,-5754.62408953,0.00023,2]
[310649278,1704634249039,-8710.83008171,0.00023,2]
[310649279,1704634249051,-18261.06563951,0.00023,2]
[310649280,1704634249063,-309.24805953,0.00023,2]
[310649281,1704634249075,-449.81211717,0.00023,2]
[310649282,1704634249088,-340.83662371,0.00023,2]
[310649283,1704634249100,-508.705,0.00023,2]
[310649284,1704634249113,-716.28058986,0.00023,2]
[310649285,1704634249124,-1372.14540597,0.00023,2]
[310649286,1704634249187,-222202.66448185,0.00023,2]
[310649287,1704634249261,-1069.0837068,0.00023,2]
[310649288,1704634249276,-3454.38333926,0.00023,2]
[310649291,1704634249290,-1878.84,0.00023,2]
[310649293,1704634249302,-3415.10669407,0.00023,2]
[310649300,1704634316720,251.75,0.00022237,2]
[310649301,1704634334597,55645.12,0.000301,90]
[310649302,1704634394090,500.0,0.00022999,5]
[310649303,1704634394381,500.0,0.00022999,5]
[310649304,1704634394647,500.0,0.00022999,5]
[310649305,1704634394913,500.0,0.00022999,5]
[310649306,1704634395183,500.0,0.00022999,5]
[310649307,1704634395471,500.0,0.00022999,5]
[310649308,1704634395583,151.0,0.00023,7]
[310649309,1704634395734,500.0,0.00022999,5]
[310649310,1704634396005,500.0,0.00022999,5]
[310649311,1704634396250,500.0,0.00022999,5]
[310649312,1704634396504,500.0,0.00022999,5]
[310649313,1704634396759,500.0,0.00022999,5]
[310649314,1704634397065,500.0,0.00022999,5]
[310649315,1704634397325,500.0,0.00022999,5]
[310649316,1704634397575,500.0,0.00022999,5]
[310649317,1704634397837,500.0,0.00022999,5]
[310649318,1704634398507,500.0,0.00022999,5]
[310649319,1704634398550,500.0,0.00022999,5]
[310649320,1704634398693,500.0,0.00022999,5]
[310649321,1704634398958,500.0,0.00022999,5]
[310649322,1704634399235,500.0,0.00022999,5]
[310649323,1704634399539,500.0,0.00022999,5]
[310649324,1704634399782,500.0,0.00022999,5]
[310649325,1704634400213,214.0,0.00022999,5]
[310649326,1704634404764,151.0,0.00023,7]
[310649327,1704634414244,203.0,0.00021761,2]
[310649328,1704634449823,430.91,0.00022237,2]
[310649329,1704634450731,151.0,0.00023,7]
[310649330,1704634456605,151.0,0.00023,7]
[310649331,1704634462255,222.97,0.00022237,2]
[310649332,1704634481821,672.01,0.00021921,2]
[310649333,1704634482039,672.01,0.00022037,2]
[310649334,1704634482280,672.01,0.00022152,2]
[310649335,1704634482519,672.01,0.00022267,2]
[310649336,1704634482719,672.01,0.00022383,2]
[310649337,1704634507851,308.08,0.00019956,2]
[310649338,1704634508071,308.08,0.0002222,2]
[310649339,1704634510172,1000.0,0.000192,2]
[310649340,1704634512718,172.48,0.00022097,2]
[310649341,1704634513098,172.48,0.00022316,2]
[310649342,1704634526277,23634.44,0.00022237,2]
[310649343,1704634529628,564.430581,0.00023,7]
[310649344,1704634532247,564.430581,0.00023,7]
[310649346,1704634538364,151.0,0.00023,7]
[310649348,1704634564379,204.0,0.00021761,2]
[310649349,1704634570881,1967.74106011,0.00022491,2]
[310649350,1704634571053,156.96323778,0.00022316,2]
[310649351,1704634572089,264.73235728,0.00022491,2]
[310649352,1704634575126,203.37489632,0.00022491,2]
[310649353,1704634576259,300.62032364,0.00022491,2]
[310649354,1704634580431,336.2168,0.00022316,2]
[310649355,1704634581013,151.0,0.00023,7]
[310649356,1704634585530,155.0,0.00022491,2]
[310649357,1704634591806,155.0,0.0002249,2]
[310649358,1704634592820,588.57,0.00022999,5]
[310649359,1704634593071,588.57,0.00022999,5]
[310649360,1704634593363,588.57,0.00022999,5]
[310649361,1704634593657,588.57,0.00022999,5]
[310649362,1704634593911,588.57,0.00022999,5]
[310649363,1704634594175,588.57,0.00022999,5]
[310649364,1704634594253,342.94877468,0.00022491,2]
[310649365,1704634594552,588.57,0.00022999,5]
[310649366,1704634594804,588.57,0.00022999,5]
[310649367,1704634595069,588.57,0.00022999,5]
[310649368,1704634595342,588.57,0.00022999,5]
[310649369,1704634595824,588.57,0.00022999,5]
[310649370,1704634595900,588.57,0.00022999,5]
[310649371,1704634596172,588.57,0.00022999,5]
[310649372,1704634596767,588.57,0.00022999,5]
[310649373,1704634597047,588.57,0.00022999,5]
[310649374,1704634597313,588.57,0.00022999,5]
[310649375,1704634597599,588.57,0.00022999,5]
[310649376,1704634597875,588.57,0.00022999,5]
[310649377,1704634598202,588.57,0.00022999,5]
[310649378,1704634598460,588.57,0.00022999,5]
[310649379,1704634598490,151.0,0.00023,7]
[310649380,1704634598732,588.57,0.00022999,5]
[310649381,1704634599014,588.57,0.00022999,5]
[310649382,1704634599348,588.57,0.00022999,5]
[310649383,1704634599612,588.61146981,0.00022999,5]
[310649384,1704634600019,155.0,0.00022491,2]
[310649385,1704634600240,4286.11212767,0.00022483,2]
[310649386,1704634601071,363.3248794,0.00022491,2]
[310649387,1704634601262,155.0,0.00022491,2]
[310649388,1704634601439,694.44370806,0.00022491,2]
[310649389,1704634601492,151.0,0.00023,7]
[310649390,1704634602612,155.0,0.00022491,2]
[310649391,1704634602672,336.85633833,0.00022491,2]
[310649392,1704634603806,1654.6697476,0.00022491,2]
[310649393,1704634604296,155.0,0.00022491,2]
[310649394,1704634604356,4477.84140557,0.00022491,2]
[310649395,1704634605078,155.0,0.00022491,2]
[310649396,1704634605697,417.15999527,0.00022491,2]
[310649397,1704634606142,383.77543811,0.00022491,2]
[310649398,1704634606921,2614.40920101,0.00022491,2]
[310649399,1704634607018,3026.38966592,0.00022491,2]
[310649400,1704634608223,217.48290343,0.00022491,2]
[310649401,1704634608506,235.09141461,0.00022491,2]
[310649402,1704634608533,155.0,0.00022491,2]
[310649403,1704634608560,697.70526116,0.00022491,2]
[310649404,1704634608745,541.98350192,0.00022491,2]
[310649405,1704634609097,531.70709592,0.00022491,2]
[310649406,1704634609896,189.33524071,0.00022491,2]
[310649407,1704634610414,155.0,0.00022491,2]
[310649408,1704634610541,155.0,0.00022491,2]
[310649409,1704634610958,160.29063038,0.00022491,2]
[310649410,1704634611341,155.0,0.00022491,2]
[310649411,1704634611369,527.0422389,0.00022491,2]
[310649412,1704634612309,155.0,0.00022491,2]
[310649413,1704634612377,155.0,0.00022491,2]
[310649414,1704634614353,309.4541129,0.00022491,2]
[310649415,1704634614400,3321.55398906,0.00022491,2]
[310649416,1704634615076,330.12731426,0.00022491,2]
[310649417,1704634615114,2774.27460876,0.00022491,2]
[310649418,1704634616410,10533.37563469,0.00022491,2]
[310649419,1704634616668,335.86357417,0.00022491,2]
[310649420,1704634616964,660.16,0.0002179,2]
[310649421,1704634618019,155.0,0.00022491,2]
[310649422,1704634618456,1849.87815722,0.00022491,2]
[310649423,1704634619087,155.0,0.00022491,2]
[310649424,1704634620044,249.73147916,0.00022491,2]
[310649425,1704634620092,155.28376448,0.00022491,2]
[310649426,1704634620513,234.48852727,0.00022491,2]
[310649427,1704634621304,204.65808619,0.00022491,2]
[310649428,1704634622361,4461.16026139,0.00022491,2]
[310649429,1704634622613,188.60158763,0.00022491,2]
[310649430,1704634622735,540.4647031,0.00022491,2]
[310649431,1704634622928,548.83981203,0.00022491,2]
[310649432,1704634623642,415.92795139,0.00022491,2]
[310649433,1704634623817,1654.6697476,0.00022491,2]
[310649434,1704634624215,217.48290343,0.00022491,2]
[310649435,1704634624939,160.53136285,0.00022491,2]
[310649436,1704634625043,487.16497354,0.00022491,2]
[310649437,1704634625095,336.68036356,0.00022491,2]
[310649438,1704634625439,707.09069785,0.00022491,2]
[310649439,1704634626391,155.0,0.00022491,2]
[310649440,1704634626662,173.55828971,0.00022491,2]
[310649441,1704634627934,382.72168125,0.00022491,2]
[310649442,1704634628171,7845.63232915,0.00022491,2]
[310649443,1704634628322,308.73277249,0.00022491,2]
[310649444,1704634628401,500.0,0.00022997,5]
[310649445,1704634628427,155.95455381,0.00022491,2]
[310649446,1704634628511,355.29361802,0.00022491,2]
[310649447,1704634628682,500.0,0.00022999,5]
[310649448,1704634628939,602.02,0.00022999,5]
[310649449,1704634629163,158.417068,0.00023,7]
[310649450,1704634629364,155.41007468,0.00022491,2]
[310649451,1704634629395,527.0422389,0.00022491,2]
[310649452,1704634632048,248.94627691,0.00022491,2]
[310649453,1704634632316,156.16116689,0.00022491,2]
[310649454,1704634632371,3321.55398906,0.00022491,2]
[310649455,1704634632537,155.63228091,0.00022491,2]
[310649456,1704634632752,248.70872863,0.00022266,2]
[310649457,1704634633119,2740.08077355,0.00022491,2]
[310649458,1704634634922,151.0,0.00023,7]
[310649459,1704634635918,492.66491416,0.00022266,2]
[310649460,1704634636459,1821.63347525,0.00022491,2]
[310649461,1704634638023,156.30223046,0.00022491,2]
[310649462,1704634638428,156.92,0.00022404,2]
[310649463,1704634640439,6334.2789566,0.00022491,2]
[310649464,1704634644616,270.2166863,0.0002249,2]
[310649465,1704634646349,-290.31003879,0.00022491,2]
[310649466,1704634647319,262.728849,0.00023,7]
[310649467,1704634647535,-171.74196973,0.00022491,2]
[310649468,1704634648026,-150.0,0.00022491,2]
[310649469,1704634648843,-150.0,0.00022491,2]
[310649470,1704634649465,-150.0,0.00022491,2]
[310649471,1704634649994,-150.0,0.00022491,2]
[310649472,1704634650173,262.728849,0.00023,7]
[310649473,1704634650380,-150.0,0.00022491,2]
[310649474,1704634650787,-150.0,0.00022491,2]
[310649475,1704634651550,42827.69701321,0.0002249,2]
[310649476,1704634651602,-150.0,0.00022491,2]
[310649478,1704634653008,558.43427985,0.00022379,2]
[310649479,1704634653050,-150.0,0.00022491,2]
[310649480,1704634653437,-150.0,0.00022491,2]
[310649481,1704634653818,-150.0,0.00022491,2]
[310649482,1704634654300,-150.0,0.00022491,2]
[310649483,1704634655405,-150.0,0.00022491,2]
[310649484,1704634656928,-150.0,0.00022491,2]
[310649485,1704634659752,-150.0,0.00022491,2]
[310649486,1704634660160,370.3462827,0.0002249,2]
[310649487,1704634660348,-150.0,0.00022491,2]
[310649488,1704634660938,-150.0,0.00022491,2]
[310649489,1704634661324,-150.0,0.00022491,2]
[310649490,1704634661847,-150.0,0.00022491,2]
[310649491,1704634662225,16729.12163178,0.0002249,2]
[310649492,1704634662251,-150.0,0.00022491,2]
[310649493,1704634662877,151.0,0.00023,7]
[310649494,1704634666134,151.0,0.00023,7]
[310649496,1704634666463,-150.0,0.00022491,2]
[310649497,1704634668442,-150.0,0.00022491,2]
[310649498,1704634668877,-150.0,0.00022491,2]
[310649499,1704634676727,164.46946496,0.0002249,2]
[310649500,1704634685915,150.0,0.00022491,2]
[310649501,1704634686982,153.15760175,0.00022468,2]
[310649503,1704634688750,2000.0,0.00021794,2]
[310649504,1704634697052,151.0,0.00023,7]
[310649505,1704634703368,151.0,0.00023,7]
[310649506,1704634714352,507.987523,0.00023,7]
[310649508,1704634717610,507.987523,0.00023,7]
[310649509,1704634724555,355088.5388,0.00022393,2]
[310649510,1704634726213,151.0,0.00023,7]
[310649511,1704634733726,32148.87,0.000301,90]
[310649512,1704634741615,300.0,0.0002249,2]
[310649513,1704634742357,150.0,0.0002249,2]
[310649514,1704634742684,250.6187,0.00022393,2]
[310649515,1704634751883,223.21948912,0.00022,2]
[310649516,1704634752883,151.0,0.00023,7]
[310649517,1704634758784,150.46768086,0.00022485,2]
[310649518,1704634780793,158.1107,0.00022393,2]
[310649584,1704634790444,150.0,0.00021838,2]
[310649590,1704634825038,151.0,0.00023,7]
[310649593,1704634829046,151.0,0.00023,7]
[310649594,1704634830685,151.0,0.00023,7]
[310649596,1704634841221,170.37,0.00022237,2]
[310649597,1704634844018,307.58948204,0.00022453,2]
[310649612,1704634875916,172.75471983,0.00022491,2]
[310649613,1704634879663,150.0,0.0002248,2]
[310649614,1704634884862,151.0,0.00023,7]
[310649615,1704634895168,655.27,0.00022237,2]
[310649616,1704634897287,151.0,0.00023,7]
[310649620,1704634910325,457.18877,0.00023,7]
[310649621,1704634913383,457.18877,0.00023,7]
[310649624,1704634921626,150.0,0.0002249,2]
[310649626,1704634923462,151.0,0.00023,7]
[310649635,1704634931239,414.879,0.00022393,2]
[310649647,1704634947201,381.36114726,0.00022417,2]
[310649663,1704634994621,151.0,0.00023,7]
[310649664,1704635001147,151.0,0.00023,7]
[310649669,1704635014125,236.455964,0.00023,7]
[310649670,1704635017030,236.455964,0.00023,7]
[310649671,1704635018033,157.51390083,0.00022391,2]
[310649672,1704635023163,157.51390083,0.00022448,2]
[310649673,1704635026321,316.07,0.00019871,2]
[310649674,1704635026574,151.0,0.00023,7]
[310649675,1704635026640,316.07,0.00022135,2]
[310649677,1704635029364,269.14079675,0.00022434,2]
[310649678,1704635033107,150.87,0.00021779,2]
[310649680,1704635041172,1902.45471705,0.00022391,2]
[310649681,1704635041275,1902.45471705,0.00022393,2]
[310649682,1704635051939,2500.0,0.000224,2]
[310649683,1704635052095,151.0,0.00023,7]
[310649684,1704635059198,151.0,0.00023,7]
[310649686,1704635067512,381.36114725,0.00022401,2]
[310649688,1704635086607,665.4,0.00021752,2]
[310649690,1704635092446,-4930.0,0.00022491,2]
[310649695,1704635117580,151.0,0.00023,7]
[310649696,1704635124414,151.0,0.00023,7]
[310649700,1704635129405,156.2739,0.00023,7]
[310649701,1704635141465,411.469893,0.00023,7]
[310649702,1704635144465,411.469893,0.00023,7]
[310649703,1704635144919,2000.0,0.00021749,2]
[310649704,1704635165841,150.0,0.00022,2]
[310649705,1704635170089,1250.0,0.00021,3]
[310649706,1704635172459,150.0,0.00022,2]
[310649707,1704635177953,381.36114725,0.00022404,2]
[310649708,1704635179325,151.0,0.00023,7]
[310649709,1704635179797,1250.0,0.00021,3]
[310649710,1704635179849,250.0,0.00022,2]
[310649711,1704635197238,1250.0,0.00021,3]
[310649712,1704635242355,151.0,0.00023,7]
[310649713,1704635242624,151.0,0.00023,7]
[310649714,1704635244843,235.4981972,0.00022404,2]
[310649715,1704635249856,235.49819715,0.00022475,2]
[310649716,1704635255429,151.0,0.00023,7]
[310649717,1704635255731,151.0,0.00023,7]
[310649718,1704635262377,151.0,0.00023,7]
[310649719,1704635263050,151.0,0.00023,7]
[310649720,1704635298500,151.0,0.00023,7]
[310649724,1704635309972,370.322904,0.00023,7]
[310649725,1704635314769,370.322904,0.00023,7]
[310649729,1704635327547,212.810368,0.00023,7]
[310649730,1704635330148,212.810368,0.00023,7]
[310649731,1704635336983,475.78,0.00021754,2]
[310649734,1704635353089,151.0,0.00023,7]
[310649735,1704635359231,151.0,0.00023,7]
[310649736,1704635365032,151.0,0.00023,7]
[310649747,1704635417851,151.0,0.00023,7]
[310649768,1704635432281,-367.6225572,0.00022491,2]
[310649769,1704635432337,-1342.36270572,0.00022491,2]
[310649770,1704635432350,-850.0667792,0.00022491,2]
[310649771,1704635432363,-1106.22916227,0.00022491,2]
[310649772,1704635432375,-1432.18835877,0.00022491,2]
[310649773,1704635432393,-2222.73312087,0.00022491,2]
[310649774,1704635432403,-1652.91595978,0.00022491,2]
[310649775,1704635432414,-216.76302316,0.00022491,2]
[310649776,1704635432424,-170.74682164,0.00022491,2]
[310649777,1704635432434,-1577.93651276,0.00022491,2]
[310649778,1704635432456,-1595.63227882,0.00022491,2]
[310649779,1704635432465,-210.92031935,0.00022491,2]
[310649780,1704635432474,-26.86128353,0.00022491,2]
[310649781,1704635432487,-277.49966938,0.00022491,2]
[310649782,1704635432497,-242.43603172,0.00022491,2]
[310649783,1704635432506,-1676.07450224,0.00022491,2]
[310649784,1704635432515,-522.20683445,0.00022491,2]
[310649785,1704635432525,-7485.68006583,0.00022491,2]
[310649786,1704635432536,-269.45584062,0.00022491,2]
[310649787,1704635432545,-1424.35902177,0.00022491,2]
[310649788,1704635432554,-368.72979004,0.00022491,2]
[310649789,1704635432565,-265.35962199,0.00022491,2]
[310649790,1704635432575,-3754.38265633,0.00022491,4]
[310649791,1704635432586,-471.70437541,0.00022491,2]
[310649792,1704635432595,-3282.916604,0.00022492,2]
[310649793,1704635432607,-73112.71205568,0.00022493,2]
[310649794,1704635432621,-2833.26152211,0.00022493,2]
[310649795,1704635432633,-4112.66244914,0.00022493,2]
[310649796,1704635432645,-956.88669112,0.00022493,2]
[310649797,1704635432659,-2021.32868919,0.00022493,2]
[310649799,1704635432679,-339.85413298,0.00022493,2]
[310649801,1704635432691,-4453.2888,0.00022493,2]
[310649804,1704635432706,-338.95229412,0.00022493,2]
[310649815,1704635438303,-2062.21623981,0.00022493,2]
[310649816,1704635438367,-475.24367176,0.00022493,2]
[310649817,1704635438379,-1197.93357264,0.00022493,2]
[310649818,1704635438436,-37290.11292835,0.00022493,2]
[310649819,1704635438446,-29791.179,0.00022493,2]
[310649820,1704635438458,-1408.70146017,0.00022495,2]
[310649821,1704635438468,-672.01,0.00022498,2]
[310649822,1704635438478,-179.85354208,0.00022499,2]
[310649823,1704635438488,-261.01645792,0.00022499,2]
[310649824,1704635438498,-475.8397872,0.00022499,2]
[310649825,1704635438509,-500.0,0.00022499,2]
[310649826,1704635438518,-297.74803238,0.00022499,2]
[310649827,1704635438528,-308.39911493,0.00022499,2]
[310649828,1704635438537,-347.94813068,0.00022499,2]
[310649829,1704635438547,-323.2211863,0.00022499,2]
[310649830,1704635438557,-288.395,0.00022499,2]
[310649831,1704635438566,-159.82599649,0.00022499,2]
[310649832,1704635438576,-417.69665759,0.00022499,2]
[310649833,1704635438585,-500.0,0.00022499,2]
[310649834,1704635438594,-500.0,0.00022499,2]
[310649835,1704635438603,-34593.78257437,0.000225,2]
[310649836,1704635438616,-77848.77901429,0.000225,2]
[310649837,1704635438628,-16630.14737487,0.000225,2]
[310649838,1704635438637,-172.48,0.00022534,2]
[310649839,1704635438646,-499.99,0.00022534,2]
[310649840,1704635438659,-1010.8,0.00022534,2]
[310649841,1704635438668,-794.73,0.00022534,2]
[310649842,1704635438919,-235.49819715,0.00022546,2]
[310649843,1704635438929,-150.0,0.00022548,2]
[310649844,1704635438939,-383.22,0.00022552,2]
[310649845,1704635438948,-999.99,0.00022552,2]
[310649846,1704635438960,-672.01,0.00022613,2]
[310649847,1704635438969,-576.71,0.00022613,2]
[310649848,1704635438979,-235.49819715,0.00022617,2]
[310649849,1704635438988,-393.68225135,0.00022669,2]
[310649850,1704635438997,-235.49819715,0.00022687,2]
[310649851,1704635439006,-1000.0,0.000227,2]
[310649852,1704635439015,-203.0,0.00022702,2]
[310649853,1704635439024,-672.01,0.00022729,2]
[310649854,1704635439034,-665.4,0.0002273,2]
[310649855,1704635439044,-172.48,0.00022753,2]
[310649856,1704635439053,-235.49819715,0.00022758,2]
[310649857,1704635439063,-164.98748773,0.00022768,4]
[310649858,1704635439072,-2760.0,0.0002277,2]
[310649859,1704635439082,-1000.0,0.000228,3]
[310649860,1704635439091,-710.98,0.000228,2]
[310649861,1704635439100,-938.59,0.000228,2]
[310649862,1704635439109,-293.55,0.000228,2]
[310649863,1704635439119,-626.58,0.000228,2]
[310649864,1704635439128,-400.57,0.000228,2]
[310649865,1704635439137,-150.0,0.000228,2]
[310649866,1704635439147,-843.59,0.000228,2]
[310649867,1704635439156,-938.59,0.000228,2]
[310649868,1704635439165,-400.57,0.000228,2]
[310649869,1704635439175,-313.69,0.000228,2]
[310649870,1704635439185,-416.18,0.000228,2]
[310649871,1704635439196,-400.57,0.000228,2]
[310649872,1704635439207,-938.59,0.000228,2]
[310649873,1704635439220,-293.55,0.000228,2]
[310649874,1704635439230,-313.69,0.000228,2]
[310649875,1704635439241,-417.22,0.000228,2]
[310649876,1704635439250,-182.84,0.000228,2]
[310649877,1704635439262,-313.69,0.000228,2]
[310649878,1704635439274,-293.55,0.000228,2]
[310649879,1704635439283,-938.59,0.000228,2]
[310649880,1704635439293,-400.57,0.000228,2]
[310649881,1704635439303,-293.55,0.000228,2]
[310649882,1704635439312,-400.57,0.000228,2]
[310649883,1704635439321,-938.59,0.000228,2]
[310649884,1704635439330,-313.69,0.000228,2]
[310649885,1704635439340,-834.32,0.000228,2]
[310649886,1704635439349,-417.22,0.000228,2]
[310649887,1704635439358,-293.55,0.000228,2]
[310649888,1704635439367,-300.0,0.000228,2]
[310649889,1704635439376,-400.57,0.000228,2]
[310649890,1704635439387,-313.69,0.000228,2]
[310649891,1704635439396,-938.59,0.000228,2]
[310649892,1704635439405,-417.22,0.000228,2]
[310649893,1704635439414,-293.55,0.000228,2]
[310649894,1704635439424,-497.69289001,0.000228,2]
[310649895,1704635439437,-440.89710999,0.000228,2]
[310649896,1704635439446,-297.3215259,0.000228,2]
[310649897,1704635439460,-16.3684741,0.000228,2]
[310649898,1704635439469,-407.37,0.000228,2]
[310649899,1704635439478,-417.22,0.000228,2]
[310649900,1704635439488,-150.0,0.000228,2]
[310649901,1704635439496,-13.24642467,0.000228,2]
[310649902,1704635439712,-925.34357533,0.000228,2]
[310649903,1704635439721,-400.57,0.000228,2]
[310649904,1704635439731,-293.55,0.000228,2]
[310649905,1704635439740,-300.0,0.000228,2]
[310649906,1704635439749,-313.69,0.000228,2]
[310649907,1704635439758,-417.22,0.000228,2]
[310649908,1704635439767,-293.55,0.000228,2]
[310649909,1704635439776,-938.59,0.000228,2]
[310649910,1704635439786,-417.22,0.000228,2]
[310649911,1704635439795,-938.59,0.000228,2]
[310649912,1704635439805,-151.99,0.000228,2]
[310649913,1704635439814,-313.69,0.000228,2]
[310649914,1704635439823,-400.57,0.000228,2]
[310649915,1704635439833,-520.72,0.000228,2]
[310649916,1704635439843,-293.48,0.000228,2]
[310649917,1704635439852,-2324.0,0.000228,2]
[310649918,1704635439862,-938.59,0.000228,2]
[310649919,1704635439871,-417.22,0.000228,2]
[310649920,1704635439881,-417.22,0.000228,2]
[310649921,1704635439891,-313.69,0.000228,2]
[310649922,1704635439900,-293.48,0.000228,2]
[310649923,1704635439909,-938.59,0.000228,2]
[310649924,1704635439919,-150.0,0.000228,2]
[310649925,1704635439928,-400.57,0.000228,2]
[310649926,1704635439937,-417.22,0.000228,2]
[310649927,1704635439946,-511.95,0.000228,2]
[310649928,1704635439964,-417.22,0.000228,2]
[310649929,1704635439977,-278.24,0.000228,2]
[310649930,1704635439988,-938.59,0.000228,2]
[310649931,1704635440000,-150.0,0.000228,2]
[310649932,1704635440010,-313.69,0.000228,2]
[310649933,1704635440022,-400.57,0.000228,2]
[310649934,1704635440032,-1000.0,0.000228,4]
[310649935,1704635440041,-417.22,0.000228,2]
[310649936,1704635440052,-401.32,0.000228,2]
[310649937,1704635440062,-208.32,0.000228,2]
[310649938,1704635440072,-417.22,0.000228,2]
[310649939,1704635440083,-800.69,0.000228,2]
[310649940,1704635440095,-938.08,0.000228,2]
[310649941,1704635440106,-313.69,0.000228,2]
[310649942,1704635440117,-299.66,0.000228,2]
[310649943,1704635440127,-417.22,0.000228,2]
[310649944,1704635440138,-417.22,0.000228,2]
[310649945,1704635440150,-313.69,0.000228,2]
[310649946,1704635440160,-293.48,0.000228,2]
[310649947,1704635440170,-400.57,0.000228,2]
[310649948,1704635440180,-938.59,0.000228,2]
[310649949,1704635440190,-150.0,0.000228,2]
[310649950,1704635440201,-417.22,0.000228,2]
[310649951,1704635440212,-862.19,0.000228,2]
[310649952,1704635440222,-150.99,0.000228,2]
[310649953,1704635440232,-175.11,0.000228,2]
[310649954,1704635440242,-152.27,0.000228,2]
[310649955,1704635440253,-242.06817467,0.000228,2]
[310649956,1704635440277,-51.41182533,0.000228,2]
[310649957,1704635440286,-153.65,0.000228,2]
[310649958,1704635440296,-340.67243119,0.000228,2]
[310649959,1704635440312,-76.54756881,0.000228,2]
[310649960,1704635440322,-152.18,0.000228,2]
[310649961,1704635440334,-938.59,0.000228,2]
[310649962,1704635440346,-8.90563119,0.000228,2]
[310649963,1704635440451,-400.23436881,0.000228,2]
[310649964,1704635440463,-502.5,0.000228,2]
[310649965,1704635440473,-1868.97,0.000228,2]
[310649966,1704635440482,-293.48,0.000228,2]
[310649967,1704635440491,-407.44,0.000228,2]
[310649968,1704635440502,-417.33,0.000228,2]
[310649969,1704635440511,-150.0,0.000228,2]
[310649970,1704635440521,-150.0,0.000228,2]
[310649971,1704635440531,-150.0,0.000228,2]
[310649972,1704635440541,-938.82,0.000228,2]
[310649973,1704635440550,-239.81131442,0.000228,2]
[310649974,1704635440563,-160.84868558,0.000228,2]
[310649975,1704635440572,-150.0,0.000228,2]
[310649976,1704635440581,-293.55,0.000228,2]